bitfinex/quotes_SOLUSD_20250607
["timestamp","ask_amount","ask_price","bid_price","bid_amount"]
[1749276541599,6.62339382,150.98,150.97,96.62234854]
[1749276542188,6.62309998,150.99,150.97,89.7]
[1749276542389,11.58393125,150.99,150.97,96.62234854]
[1749276542592,6.62309998,150.99,150.97,96.62234854]
[1749276542793,11.58393125,150.99,150.97,96.62234854]
[1749276542993,6.62309998,150.99,150.97,96.62234854]
[1749276543290,11.58393125,150.99,150.97,96.62234854]
[1749276543614,6.62309998,150.99,150.97,96.62234854]
[1749276544899,6.62251655,151.0,150.97,96.62234854]
[1749276545414,4.96124954,150.99,150.97,89.7]
[1749276545613,4.96124954,150.98,150.95,57.84234854]
[1749276545900,6.92234854,150.99,150.95,57.84234854]
[1749276546081,4.96181983,150.98,150.95,57.84234854]
[1749276546405,4.96181983,150.98,150.95,50.92]
[1749276546406,4.96193005,150.97,150.95,50.92]
[1749276546696,6.92234854,150.98,150.95,140.62]
[1749276546899,11.58551014,150.97,150.95,140.62]
[1749276547079,6.62383254,150.97,150.95,140.62]
[1749276547275,11.58549766,150.97,150.95,140.62]
[1749276547489,6.62383254,150.97,150.95,140.62]
[1749276548205,11.58549785,150.97,150.95,140.62]
[1749276548378,6.62383254,150.97,150.95,140.62]
[1749276548702,11.58549785,150.97,150.95,140.62]
[1749276548888,6.62383254,150.97,150.95,140.62]
[1749276549391,11.58486229,150.97,150.95,140.62]
[1749276549595,11.58486229,150.97,150.95,100.08]
[1749276551674,11.58486229,150.97,150.95,10.38]
[1749276555305,6.62383254,150.97,150.95,10.38]
[1749276555504,11.58435612,150.97,150.95,10.38]
[1749276557006,6.62383254,150.97,150.95,10.38]
[1749276557302,11.58436604,150.97,150.95,10.38]
[1749276557503,11.58412927,150.97,150.95,10.38]
[1749276558312,11.58412927,150.97,150.94,137.12234854]
[1749276562211,11.58297388,150.98,150.96,6.92234854]
[1749276562396,11.58297388,150.98,150.97,6.92234854]
[1749276562397,6.62348121,150.98,150.97,6.92234854]
[1749276563697,37.5821402,150.99,150.97,6.92234854]
[1749276563895,26.0,150.99,150.98,6.92234854]
[1749276564110,26.0,150.99,150.97,137.10234854]
[1749276566916,6.92234854,150.98,150.97,89.7]
[1749276567115,4.95898133,150.98,150.97,89.7]
[1749276567312,11.88132987,150.98,150.97,89.7]
[1749276568019,6.62383254,150.97,150.93,6.92234854]
[1749276568229,11.58281387,150.97,150.93,6.92234854]
[1749276569105,11.58281387,150.97,150.94,6.92234854]
[1749276569305,6.62383254,150.97,150.94,6.92234854]
[1749276570818,11.58250775,150.97,150.94,6.92234854]
[1749276571018,6.62383254,150.97,150.94,6.92234854]
[1749276571206,17.44341902,150.98,150.94,10.8200252]
[1749276571402,22.40199701,150.98,150.94,10.8200252]
[1749276571810,17.44341902,150.98,150.93,10.8200252]
[1749276572116,4.95873315,150.97,150.93,10.8200252]
[1749276572316,11.58292782,150.97,150.93,100.5200252]
[1749276574025,17.44421987,150.97,150.93,89.7]
[1749276574223,17.44421987,150.97,150.93,100.5200252]
[1749276575214,22.40305472,150.97,150.93,100.5200252]
[1749276575418,17.44421987,150.97,150.93,100.5200252]
[1749276575720,22.40305472,150.97,150.93,100.5200252]
[1749276575917,6.62419467,150.97,150.93,100.5200252]
[1749276576125,11.58302952,150.97,150.93,100.5200252]
[1749276576319,11.58302952,150.97,150.94,10.8200252]
[1749276577425,11.58302952,150.97,150.93,100.5200252]
[1749276578503,22.40305472,150.97,150.93,100.5200252]
[1749276578710,17.44421987,150.97,150.93,100.5200252]
[1749276578916,22.40305472,150.97,150.93,100.5200252]
[1749276579133,17.44421987,150.97,150.93,100.5200252]
[1749276580722,22.40342864,150.97,150.93,100.5200252]
[1749276580925,17.44421987,150.97,150.93,100.5200252]
[1749276581120,22.40342864,150.97,150.93,100.5200252]
[1749276581329,6.62419467,150.97,150.94,10.8200252]
[1749276581553,11.58361426,150.97,150.94,10.8200252]
[1749276581835,6.62419467,150.97,150.94,10.8200252]
[1749276582706,27.5371,150.99,150.95,10.8200252]
[1749276582926,30.95918292,150.99,150.96,10.8200252]
[1749276583123,26.0,150.99,150.96,10.8200252]
[1749276583331,30.95918292,150.99,150.96,10.8200252]
[1749276583553,26.0,150.99,150.96,10.8200252]
[1749276583727,37.58230016,150.99,150.97,10.8200252]
[1749276583928,32.62311724,150.99,150.97,10.8200252]
[1749276584227,37.58230016,150.99,150.97,100.5200252]
[1749276584429,32.62311724,150.99,150.97,100.5200252]
[1749276584627,37.58230016,150.99,150.97,100.5200252]
[1749276584846,32.62311724,150.99,150.97,100.5200252]
[1749276585030,37.58230016,150.99,150.97,100.5200252]
[1749276585363,32.62311724,150.99,150.97,100.5200252]
[1749276585530,37.58230016,150.99,150.97,100.5200252]
[1749276585851,32.62311724,150.99,150.97,100.5200252]
[1749276586026,26.0,150.99,150.98,10.8200252]
[1749276586841,26.0,150.99,150.97,100.5200252]
[1749276586842,37.58252503,150.99,150.97,100.5200252]
[1749276587059,32.62312409,150.99,150.97,100.5200252]
[1749276593358,32.62312409,150.99,150.97,96.62183472]
[1749276598539,32.62312409,150.99,150.97,89.7]
[1749276598742,37.57997137,150.99,150.97,89.7]
[1749276598941,32.62312409,150.99,150.97,89.7]
[1749276599563,37.57994847,150.99,150.97,89.7]
[1749276600154,44.50178319,150.99,150.97,89.7]
[1749276600358,6.92183472,150.98,150.97,89.7]
[1749276600540,13.54522854,150.98,150.97,89.7]
[1749276601137,32.1948774,150.98,150.97,89.7]
[1749276601341,38.72120178,150.98,150.97,89.7]
[1749276601545,18.64964886,150.97,150.92,100.2]
[1749276601753,11.8786591,150.96,150.93,40.62]
[1749276601960,6.92183472,150.94,150.92,100.2]
[1749276602259,6.92183472,150.94,150.92,51.12]
[1749276602645,39.54742274,150.93,150.9,89.7]
[1749276602848,32.92183472,150.91,150.88,89.7]
[1749276603349,6.92183472,150.9,150.88,89.7]
[1749276603956,6.92183472,150.89,150.88,89.7]
[1749276604167,6.92183472,150.89,150.87,140.86]
[1749276604858,6.62778366,150.88,150.87,140.86]
[1749276605365,17.45960533,150.89,150.87,140.86]
[1749276606045,17.45960533,150.89,150.87,100.24]
[1749276606445,6.62742048,150.89,150.87,100.24]
[1749276608663,17.45960533,150.89,150.87,100.24]
[1749276610472,17.45960533,150.89,150.87,89.7]
[1749276613875,17.45960533,150.89,150.86,40.6]
[1749276614956,6.62822297,150.87,150.85,130.28]
[1749276615874,6.62822297,150.87,150.85,89.7]
[1749276616056,6.62822297,150.87,150.85,130.26]
[1749276619171,6.62822297,150.87,150.85,141.09218485]
[1749276620349,6.62778366,150.88,150.85,130.26]
[1749276620555,6.62778366,150.88,150.85,141.09218485]
[1749276625184,13.56065271,150.89,150.85,130.26]
[1749276626585,13.56065271,150.89,150.85,137.19330829]
[1749276634594,6.93330829,150.88,150.85,130.26]
[1749276635287,6.62822297,150.87,150.85,89.7]
[1749276635488,6.62822297,150.87,150.85,130.16]
[1749276638369,6.62822297,150.87,150.85,137.09330829]
[1749276639284,13.56109195,150.88,150.85,130.16]
[1749276639972,39.56109195,150.88,150.85,130.16]
[1749276640178,25.58295715,150.87,150.85,130.14]
[1749276640989,25.58295715,150.87,150.85,89.7]
[1749276641295,6.62866233,150.86,150.85,89.7]
[1749276643276,32.21134702,150.87,150.85,89.7]
[1749276643504,32.21134702,150.87,150.84,40.44]
[1749276643708,34.17411435,150.88,150.84,47.37330829]
[1749276643916,32.62791435,150.88,150.84,47.37330829]
[1749276645703,39.56122264,150.88,150.84,40.44]
[1749276646651,4.94596219,150.87,150.84,40.44]
[1749276647206,11.57443427,150.87,150.84,40.44]
[1749276647416,4.94596219,150.86,150.84,40.44]
[1749276647992,4.94596219,150.86,150.83,96.63330829]
[1749276648303,6.62847208,150.87,150.85,40.42]
[1749276648482,4.96832784,150.86,150.85,40.42]
[1749276648905,6.62847208,150.87,150.85,40.42]
[1749276666017,4.969237,150.86,150.85,40.42]
[1749276666230,6.62847208,150.87,150.85,40.42]
[1749276667438,11.90309476,150.86,150.84,89.7]
[1749276667646,6.62847208,150.87,150.84,89.7]
[1749276667647,4.96978647,150.85,150.84,89.7]
[1749276667923,4.96978647,150.85,150.84,130.12]
[1749276669154,4.96978647,150.86,150.84,130.12]
[1749276669311,13.56178037,150.87,150.84,130.12]
[1749276669628,11.59716754,150.86,150.84,130.12]
[1749276669810,6.62896812,150.86,150.84,130.12]
[1749276672001,4.96803706,150.85,150.84,130.12]
[1749276673013,4.96803706,150.85,150.84,40.42]
[1749276673628,11.59713881,150.85,150.83,10.46]
[1749276673829,6.62910175,150.85,150.83,50.88]
[1749276674104,6.62910175,150.85,150.83,40.42]
[1749276677220,25.27831119,150.86,150.83,40.42]
[1749276677420,4.96711106,150.85,150.83,40.42]
[1749276677629,25.27831119,150.86,150.83,47.35330829]
[1749276677829,4.96683989,150.85,150.83,47.35330829]
[1749276678025,25.27831119,150.86,150.83,47.35330829]
[1749276678220,4.96694306,150.85,150.83,47.35330829]
[1749276678409,25.27831119,150.86,150.83,47.35330829]
[1749276678710,4.96669449,150.85,150.83,47.35330829]
[1749276678912,25.27831119,150.86,150.83,47.35330829]
[1749276679121,4.9666687,150.85,150.83,47.35330829]
[1749276679321,25.27831119,150.86,150.83,47.35330829]
[1749276679523,4.96655457,150.85,150.83,47.35330829]
[1749276679737,25.27831119,150.86,150.83,47.35330829]
[1749276679905,4.96655411,150.85,150.83,47.35330829]
[1749276680112,25.27831119,150.86,150.83,47.35330829]
[1749276682539,25.27831119,150.86,150.83,40.42]
[1749276682736,11.59598304,150.85,150.83,40.42]
[1749276683242,11.59598351,150.85,150.83,40.42]
[1749276684331,6.62914945,150.85,150.83,40.42]
[1749276684634,11.59615199,150.85,150.83,40.42]
[1749276684844,11.59615199,150.85,150.83,47.35330829]
[1749276689052,4.96700254,150.85,150.83,47.35330829]
[1749276689362,4.96700254,150.85,150.84,6.93330829]
[1749276689558,4.96700254,150.87,150.84,6.93330829]
[1749276689844,26.0,150.88,150.86,6.93330829]
[1749276690051,4.96596264,150.87,150.86,47.35330829]
[1749276690429,26.0,150.88,150.86,47.35330829]
[1749276691033,32.62783087,150.88,150.86,47.35330829]
[1749276691232,32.62783087,150.88,150.86,40.42]
[1749276692667,4.96548747,150.87,150.86,40.42]
[1749276693167,11.59371044,150.87,150.86,40.42]
[1749276694339,6.62822297,150.87,150.86,40.42]
[1749276695265,11.59343161,150.87,150.86,40.42]
[1749276698172,32.62789929,150.88,150.86,40.42]
[1749276698378,37.59255476,150.88,150.86,40.42]
[1749276698872,32.62789929,150.88,150.86,40.42]
[1749276699664,37.5923404,150.88,150.86,40.42]
[1749276699974,32.62789929,150.88,150.86,40.42]
[1749276700145,37.59233137,150.88,150.86,40.42]
[1749276700349,32.62789929,150.88,150.86,40.42]
[1749276700553,11.59278344,150.87,150.86,40.42]
[1749276700752,6.62822297,150.87,150.86,40.42]
[1749276703673,11.59252613,150.87,150.86,40.42]
[1749276711784,30.24217499,150.87,150.86,40.42]
[1749276711980,37.17548328,150.87,150.86,40.42]
[1749276712865,30.24217499,150.87,150.86,40.42]
[1749276716693,30.24217499,150.87,150.84,96.63330829]
[1749276716883,25.27787183,150.87,150.85,40.4]
[1749276720690,4.96552039,150.86,150.85,40.4]
[1749276722693,11.59418272,150.86,150.85,40.4]
[1749276735500,11.59418272,150.86,150.84,40.4]
[1749276735702,6.62866233,150.86,150.84,40.4]
[1749276740384,6.62866233,150.86,150.84,47.33330829]
[1749276743009,6.62866233,150.86,150.84,40.4]
[1749276747501,26.0,150.88,150.85,6.93330829]
[1749276747701,4.97139918,150.87,150.86,6.93330829]
[1749276747892,26.0,150.88,150.86,6.93330829]
[1749276749112,32.62788038,150.88,150.86,6.93330829]
[1749276750922,32.62788038,150.88,150.85,6.93330829]
[1749276751117,37.59563563,150.88,150.85,6.93330829]
[1749276751423,32.62788038,150.88,150.85,6.93330829]
[1749276751820,32.62788038,150.88,150.84,130.1]
[1749276752026,4.96774076,150.87,150.84,137.03330829]
[1749276752211,32.62788038,150.88,150.85,6.93330829]
[1749276752410,4.96784238,150.87,150.85,6.93330829]
[1749276752605,32.62788038,150.88,150.85,6.93330829]
[1749276752809,4.96783394,150.87,150.85,6.93330829]
[1749276753008,32.62788038,150.88,150.85,6.93330829]
[1749276754426,11.59617363,150.87,150.85,6.93330829]
[1749276754630,6.6286241,150.87,150.85,6.93330829]
[1749276757514,6.6286241,150.87,150.85,47.31330829]
[1749276757906,32.62792117,150.88,150.85,47.31330829]
[1749276758817,32.62792117,150.88,150.85,137.01330829]
[1749276760826,4.96693101,150.87,150.85,137.01330829]
[1749276761005,4.96693147,150.87,150.85,137.01330829]
[1749276761407,32.62792117,150.88,150.85,137.01330829]
[1749276766717,37.59429449,150.88,150.85,137.01330829]
[1749276768310,32.62792117,150.88,150.85,137.01330829]
[1749276768512,37.59429449,150.88,150.85,137.01330829]
[1749276768736,32.62792117,150.88,150.85,137.01330829]
[1749276768919,37.59429449,150.88,150.85,137.01330829]
[1749276769119,32.62792117,150.88,150.85,137.01330829]
[1749276769319,37.59429449,150.88,150.86,6.93330829]
[1749276769636,32.62792117,150.88,150.87,40.38]
[1749276772125,37.59348888,150.88,150.87,40.38]
[1749276772330,32.62792117,150.88,150.87,40.38]
[1749276782352,37.59369698,150.88,150.87,40.38]
[1749276783337,63.17665413,150.88,150.87,40.38]
[1749276783646,63.17665413,150.88,150.85,130.06]
[1749276783853,11.8990841,150.87,150.85,130.06]
[1749276784050,6.93330829,150.87,150.85,130.06]
[1749276784355,4.96680319,150.86,150.85,130.06]
[1749276785654,11.59546552,150.86,150.85,40.36]
[1749276788063,6.62866233,150.86,150.85,40.36]
[1749276789349,6.62822297,150.87,150.85,40.36]
[1749276791468,6.62822297,150.87,150.84,107.03330829]
[1749276791789,6.62822297,150.87,150.85,40.36]
[1749276794241,4.96671077,150.86,150.85,40.36]
[1749276795756,6.62822297,150.87,150.85,40.36]
[1749276795962,26.0,150.86,150.85,40.36]
[1749276796263,26.0,150.86,150.85,47.29330829]
[1749276797265,26.0,150.86,150.85,40.36]
[1749276797570,26.0,150.86,150.85,136.99330829]
[1749276798271,37.59377834,150.88,150.85,136.99330829]
[1749276798453,32.62793992,150.88,150.85,136.99330829]
[1749276805491,32.62793992,150.88,150.86,6.93330829]
[1749276805786,32.62793992,150.88,150.87,40.36]
[1749276816808,37.59278199,150.88,150.87,40.36]
[1749276821110,37.59309945,150.88,150.87,40.36]
[1749276821510,32.62793992,150.88,150.87,40.36]
[1749276822798,37.59310578,150.88,150.87,40.36]
[1749276823013,32.62793992,150.88,150.87,40.36]
[1749276824125,37.59301645,150.88,150.87,40.36]
[1749276824306,32.62793992,150.88,150.87,40.36]
[1749276824498,37.59301645,150.88,150.87,40.36]
[1749276824690,32.62793992,150.88,150.87,40.36]
[1749276824890,37.59301645,150.88,150.87,40.36]
[1749276825109,32.62793992,150.88,150.87,40.36]
[1749276825304,37.59301645,150.88,150.87,40.36]
[1749276825519,32.62793992,150.88,150.87,40.36]
[1749276825726,37.59301645,150.88,150.87,40.36]
[1749276826021,32.62793992,150.88,150.87,40.36]
[1749276826220,37.59301645,150.88,150.87,40.36]
[1749276826519,32.62793992,150.88,150.87,40.36]
[1749276826714,37.59301645,150.88,150.87,40.36]
[1749276826913,32.62793992,150.88,150.87,40.36]
[1749276827122,37.59301645,150.88,150.87,40.36]
[1749276827323,32.62793992,150.88,150.87,40.36]
[1749276827525,37.59301645,150.88,150.87,40.36]
[1749276827726,32.62793992,150.88,150.87,40.36]
[1749276827901,37.59301645,150.88,150.87,40.36]
[1749276828104,32.62793992,150.88,150.87,40.36]
[1749276828299,37.59301645,150.88,150.87,40.36]
[1749276828614,39.56124821,150.88,150.87,40.36]
[1749276828810,44.52632474,150.88,150.85,130.04]
[1749276829117,11.89838482,150.87,150.85,130.04]
[1749276829326,6.93330829,150.87,150.85,130.04]
[1749276829702,25.58295715,150.86,150.85,89.7]
[1749276829903,30.5491941,150.86,150.85,89.7]
[1749276830894,37.17785643,150.86,150.85,89.7]
[1749276831810,32.21161948,150.86,150.85,89.7]
[1749276832096,37.17785643,150.86,150.85,89.7]
[1749276832532,32.21161948,150.86,150.84,40.34]
[1749276834627,37.17624889,150.86,150.84,40.34]
[1749276834825,32.21161948,150.86,150.84,40.34]
[1749276835001,37.17624889,150.86,150.84,40.34]
[1749276835201,32.21161948,150.86,150.84,40.34]
[1749276835423,37.17624889,150.86,150.84,40.34]
[1749276835707,32.21161948,150.86,150.84,40.34]
[1749276835910,37.17624889,150.86,150.84,40.34]
[1749276836207,32.21161948,150.86,150.84,40.34]
[1749276836422,37.17624889,150.86,150.84,40.34]
[1749276836622,32.21161948,150.86,150.84,40.34]
[1749276836941,37.17624889,150.86,150.84,40.34]
[1749276837228,32.21161948,150.86,150.84,40.34]
[1749276837526,37.17624889,150.86,150.83,40.34]
[1749276837706,32.21161948,150.86,150.83,40.34]
[1749276837906,37.17624889,150.86,150.83,40.34]
[1749276838106,32.21161948,150.86,150.83,40.34]
[1749276838331,37.17624889,150.86,150.83,40.34]
[1749276838515,32.21161948,150.86,150.83,40.34]
[1749276838714,37.17624889,150.86,150.83,40.34]
[1749276838917,32.21161948,150.86,150.83,40.34]
[1749276839120,37.17624889,150.86,150.83,40.34]
[1749276839315,32.21161948,150.86,150.83,40.34]
[1749276839522,37.17624889,150.86,150.83,40.34]
[1749276839827,32.21161948,150.86,150.83,40.34]
[1749276840029,37.17624889,150.86,150.83,40.34]
[1749276840209,32.21161948,150.86,150.83,40.34]
[1749276840410,37.17624889,150.86,150.83,40.34]
[1749276840739,32.21161948,150.86,150.83,40.34]
[1749276840908,37.17624889,150.86,150.83,40.34]
[1749276841110,32.21161948,150.86,150.83,40.34]
[1749276841324,37.17624889,150.86,150.83,40.34]
[1749276841518,32.21161948,150.86,150.83,40.34]
[1749276841713,37.17624889,150.86,150.83,40.34]
[1749276841921,32.21161948,150.86,150.83,40.34]
[1749276842118,37.17624889,150.86,150.83,40.34]
[1749276842309,25.27831119,150.86,150.83,40.34]
[1749276842510,30.2429406,150.86,150.83,40.34]
[1749276843637,25.27831119,150.86,150.83,40.34]
[1749276844635,30.2408009,150.86,150.83,40.34]
[1749276846029,4.96248971,150.85,150.83,40.34]
[1749276846211,30.2408009,150.86,150.83,40.34]
[1749276849634,32.21161948,150.86,150.83,40.34]
[1749276849932,37.17410919,150.86,150.83,40.34]
[1749276850135,32.21161948,150.86,150.83,40.34]
[1749276850336,37.17410919,150.86,150.83,40.34]
[1749276850537,32.21161948,150.86,150.83,40.34]
[1749276850722,37.17410919,150.86,150.83,40.34]
[1749276850922,32.21161948,150.86,150.83,40.34]
[1749276851132,37.17410919,150.86,150.83,40.34]
[1749276851319,32.21161948,150.86,150.83,40.34]
[1749276851517,37.17410919,150.86,150.83,40.34]
[1749276851735,32.21161948,150.86,150.83,40.34]
[1749276851938,37.17410919,150.86,150.83,40.34]
[1749276852127,32.21161948,150.86,150.83,40.34]
[1749276852438,30.2408009,150.86,150.83,47.27330829]
[1749276853119,25.27831119,150.86,150.83,47.27330829]
[1749276853325,30.2408009,150.86,150.83,47.27330829]
[1749276856115,30.2408009,150.86,150.85,6.93330829]
[1749276856116,26.0,150.86,150.85,6.93330829]
[1749276856319,13.56021352,150.9,150.85,96.63330829]
[1749276856320,26.0,150.87,150.85,96.63330829]
[1749276856529,26.0,150.87,150.86,47.25330829]
[1749276857237,26.0,150.87,150.86,40.32]
[1749276858038,32.62822297,150.87,150.86,40.32]
[1749276858340,37.58862837,150.87,150.85,89.7]
[1749276859536,37.58862837,150.87,150.84,136.95330829]
[1749276860444,32.62822297,150.87,150.84,136.95330829]
[1749276860647,37.59034358,150.87,150.84,136.95330829]
[1749276861144,44.52365187,150.87,150.84,130.02]
[1749276861350,39.56153126,150.87,150.84,130.02]
[1749276861719,44.52399727,150.87,150.84,130.02]
[1749276862048,39.56153126,150.87,150.84,130.02]
[1749276862432,44.52399727,150.87,150.84,130.02]
[1749276862750,39.56153126,150.87,150.84,130.02]
[1749276863127,44.52399727,150.87,150.84,130.02]
[1749276863325,39.56153126,150.87,150.84,130.02]
[1749276863835,44.52399727,150.87,150.84,130.02]
[1749276864132,39.56153126,150.87,150.84,130.02]
[1749276864634,44.52399727,150.87,150.84,130.02]
[1749276864823,39.56153126,150.87,150.84,130.02]
[1749276865227,44.52399727,150.87,150.84,130.02]
[1749276865427,39.56153126,150.87,150.84,130.02]
[1749276866744,44.5247365,150.87,150.84,130.02]
[1749276866946,39.56153126,150.87,150.84,130.02]
[1749276868432,11.59348304,150.86,150.84,130.02]
[1749276868937,11.59348304,150.86,150.84,136.95330829]
[1749276871952,6.62890492,150.86,150.84,130.02]
[1749276875634,6.62890492,150.86,150.84,89.7]
[1749276875842,6.62890492,150.86,150.84,130.02]
[1749276877350,6.62890492,150.86,150.84,40.32]
[1749276879767,4.96886759,150.85,150.84,40.32]
[1749276879975,4.96886759,150.85,150.83,40.32]
[1749276880157,13.56221321,150.86,150.83,40.32]
[1749276880353,4.96886806,150.85,150.83,40.32]
[1749276880537,13.56221321,150.86,150.83,40.32]
[1749276880862,6.62954123,150.84,150.83,40.32]
[1749276882080,6.62910175,150.85,150.83,40.32]
[1749276885654,6.62910175,150.85,150.83,40.3]
[1749276886248,6.62910175,150.85,150.82,10.36]
[1749276886454,4.96814549,150.84,150.83,40.3]
[1749276886842,26.0,150.83,150.82,10.36]
[1749276887045,30.96814549,150.83,150.81,40.3]
[1749276887373,30.96821822,150.83,150.81,40.3]
[1749276887551,30.96758524,150.83,150.81,40.3]
[1749276888270,6.63042036,150.82,150.81,40.3]
[1749276896906,32.21337751,150.82,150.78,100.243106]
[1749276897053,37.17694097,150.82,150.78,100.243106]
[1749276897252,6.93330829,150.81,150.79,40.3]
[1749276897880,37.17694097,150.82,150.79,40.3]
[1749276898397,4.96356346,150.82,150.81,6.93330829]
[1749276898574,6.59848406,150.87,150.81,47.23330829]
[1749276898774,6.62789871,150.88,150.84,6.93330829]
[1749276899091,26.0,150.86,150.85,40.3]
[1749276900886,26.0,150.86,150.85,47.23330829]
[1749276902681,4.95978406,150.88,150.85,47.23330829]
[1749276902682,30.95978406,150.88,150.85,47.23330829]
[1749276903895,30.95978406,150.88,150.85,136.93330829]
[1749276906274,26.0,150.88,150.85,136.93330829]
[1749276906904,30.95978406,150.88,150.85,136.93330829]
[1749276907202,26.0,150.88,150.85,136.93330829]
[1749276907576,4.95978406,150.89,150.87,6.93330829]
[1749276907786,49.98097531,150.9,150.88,6.93330829]
[1749276907992,49.98097531,150.9,150.89,6.93330829]
[1749276909297,42.56822609,150.94,150.89,47.23330829]
[1749276909500,37.16128696,150.94,150.9,6.93330829]
[1749276909717,26.0,150.91,150.9,6.93330829]
[1749276911007,13.43106916,150.95,150.9,6.93330829]
[1749276911216,18.64964886,150.96,150.92,6.93330829]
[1749276911513,16.96348993,150.98,150.93,6.93330829]
[1749276914104,44.64964886,150.98,150.95,6.93330829]
[1749276914709,26.0,150.98,150.96,6.93330829]
[1749276915005,26.0,150.98,150.97,6.93330829]
[1749276915196,1.5389,151.03,150.97,10.8131475]
[1749276915397,1.5389,151.03,150.99,10.8131475]
[1749276915702,1.5389,151.03,150.99,51.0931475]
[1749276915703,26.0,151.01,150.99,51.0931475]
[1749276915897,8.16021096,151.03,150.99,51.0931475]
[1749276916096,26.0,151.02,150.99,51.0931475]
[1749276916296,26.0,151.01,151.0,10.8131475]
[1749276916998,26.0,151.01,150.99,51.0931475]
[1749276918917,26.0,151.01,150.99,140.7931475]
[1749276919612,10.8131475,151.0,150.99,89.7]
[1749276919790,10.8131475,151.0,150.94,10.8131475]
[1749276919992,10.8131475,150.98,150.94,51.0931475]
[1749276920189,10.8131475,150.98,150.94,140.7931475]
[1749276921595,17.43698004,150.97,150.93,110.8531475]
[1749276921803,10.8131475,150.96,150.93,100.04]
[1749276921995,10.8131475,150.96,150.93,140.3]
[1749276922196,10.8131475,150.96,150.93,100.04]
[1749276922402,10.8131475,150.96,150.93,89.7]
[1749276922621,10.8131475,150.95,150.93,89.7]
[1749276922910,10.8131475,150.95,150.92,40.26]
[1749276923131,29.46279636,150.96,150.92,40.26]
[1749276923597,26.0,150.95,150.94,10.8131475]
[1749276923991,6.62306357,150.99,150.94,10.8131475]
[1749276924302,29.46279636,151.0,150.96,10.8131475]
[1749276924489,55.46279636,151.0,150.96,10.8131475]
[1749276924887,12.3520475,151.01,150.97,10.8131475]
[1749276925105,26.0,150.99,150.98,10.8131475]
[1749276925620,10.8131475,151.03,150.98,100.5131475]
[1749276925829,26.0,151.02,150.99,10.8131475]
[1749276926198,26.0,151.02,150.98,140.7731475]
[1749276926805,36.8131475,151.02,150.98,140.7731475]
[1749276927009,26.0,151.01,150.98,140.7731475]
[1749276927608,26.0,151.01,150.99,10.8131475]
[1749276928193,26.0,151.01,150.98,140.7731475]
[1749276930018,26.0,151.01,150.99,10.8131475]
[1749276930504,26.0,151.01,150.99,100.5131475]
[1749276931803,26.0,151.03,151.0,10.8131475]
[1749276932128,26.0,151.02,151.01,40.26]
[1749276932307,8.15927327,151.05,151.01,51.0731475]
[1749276932510,18.97242077,151.05,151.01,51.0731475]
[1749276932710,44.97242077,151.05,151.01,51.0731475]
[1749276936423,44.97242077,151.05,151.01,140.7731475]
[1749276939302,34.15927327,151.05,151.01,140.7731475]
[1749276940206,26.0,151.05,151.02,10.8131475]
[1749276940528,26.0,151.05,151.03,40.26]
[1749276942229,17.43270322,151.07,151.03,140.7731475]
[1749276942431,32.61955572,151.07,151.04,10.8131475]
[1749276942644,32.61955572,151.07,151.05,40.24]
[1749276943512,43.43270322,151.07,151.05,40.24]
[1749276943728,10.8131475,151.06,151.05,40.24]
[1749276944309,17.43303363,151.06,151.05,40.24]
[1749276944614,36.08268249,151.06,151.05,40.24]
[1749276944820,52.63239783,151.06,151.03,129.94]
[1749276945021,10.8131475,151.04,151.03,89.7]
[1749276945239,29.46279636,151.05,151.03,89.7]
[1749276945421,29.46279636,151.05,151.02,40.24]
[1749276946235,6.62076271,151.04,151.02,40.24]
[1749276947534,10.8131475,151.06,151.02,51.0531475]
[1749276947735,26.0,151.05,151.04,10.8131475]
[1749276947938,26.0,151.05,151.03,10.8131475]
[1749276950126,26.0,151.05,151.02,51.0531475]
[1749276951429,26.0,151.05,151.03,10.8131475]
[1749276953522,26.0,151.05,151.02,140.7531475]
[1749276954473,6.61995537,151.06,151.02,140.7531475]